[Event "Titled Tuesday Blitz February 15 Early 2022"]
[White "Lauridsen, Jesper Morch"]
[Black "Hoffmann, Asa"]
[WhiteFideId "1401890"]
[BlackFideId "2001470"]
[WhiteElo "2211"]
[BlackElo "2117"]
[Result "1-0"]
[Round "09"]
[TimeControl "180+1"]
[Date "2022.02.15"]
[WhiteClock "0:00:06"]
[BlackClock "0:00:38"]

1. f4 {[%clk 0:02:57]}  d6 {[%clk 0:02:58]} 2. e4 {[%clk 0:02:55]}  Nf6 {[%clk 0:02:57]} 3. Nc3 {[%clk 0:02:54]}  c5 {[%clk 0:02:54]} 4. Nf3 {[%clk 0:02:53]}  Nc6 {[%clk 0:02:54]} 5. d4 {[%clk 0:02:52]}  cxd4 {[%clk 0:02:50]} 6. Nxd4 {[%clk 0:02:51]}  Bd7 {[%clk 0:02:49]} 7. Nf3 {[%clk 0:02:47]}  g6 {[%clk 0:02:47]} 8. Bd3 {[%clk 0:02:47]}  Bg7 {[%clk 0:02:47]} 9. O-O {[%clk 0:02:44]}  O-O {[%clk 0:02:47]} 10. Kh1 {[%clk 0:02:44]}  a6 {[%clk 0:02:46]} 11. a4 {[%clk 0:02:42]}  Rc8 {[%clk 0:02:46]} 12. Be3 {[%clk 0:02:38]}  Na5 {[%clk 0:02:44]} 13. Bg1 {[%clk 0:02:17]}  Nc4 {[%clk 0:02:41]} 14. e5 {[%clk 0:02:08]}  Ng4 {[%clk 0:02:28]} 15. Bxc4 {[%clk 0:01:41]}  Rxc4 {[%clk 0:02:26]} 16. Nd5 {[%clk 0:01:17]}  Bc6 {[%clk 0:02:18]} 17. b3 {[%clk 0:00:53]}  Re4 {[%clk 0:01:59]} 18. Ng5 {[%clk 0:00:49]}  f5 {[%clk 0:01:33]} 19. Nxe4 {[%clk 0:00:42]}  fxe4 {[%clk 0:01:32]} 20. Nxe7+ {[%clk 0:00:37]}  Qxe7 {[%clk 0:01:28]} 21. Qxg4 {[%clk 0:00:36]}  dxe5 {[%clk 0:01:26]} 22. fxe5 {[%clk 0:00:35]}  Qxe5 {[%clk 0:01:21]} 23. Rxf8+ {[%clk 0:00:31]}  Bxf8 {[%clk 0:01:19]} 24. Rf1 {[%clk 0:00:19]}  Be7 {[%clk 0:01:08]} 25. c3 {[%clk 0:00:14]}  Qg5 {[%clk 0:00:51]} 26. Qe6+ {[%clk 0:00:11]}  Kg7 {[%clk 0:00:48]} 27. Rf7+ {[%clk 0:00:10]}  Kh6 {[%clk 0:00:48]} 28. Qxe7 {[%clk 0:00:08]}  Qxe7 {[%clk 0:00:43]} 29. Rxe7 {[%clk 0:00:08]}  Kg5 {[%clk 0:00:42]} 30. Be3+ {[%clk 0:00:08]}  Kf5 {[%clk 0:00:41]} 31. Rxh7 {[%clk 0:00:08]}  g5 {[%clk 0:00:41]} 32. Rh5 {[%clk 0:00:07]}  Bd5 {[%clk 0:00:38]} 33. Rxg5+ {[%clk 0:00:06]}  Ke6 {[%clk 0:00:38]} 34. Rxd5 {[%clk 0:00:06]}  Kxd5 {[%clk 0:00:38]} 35. h4 {[%clk 0:00:06]} 1-0


[Site "https://www.chess.com"]

[Event "Titled Tuesday Blitz February 15 Early 2022"]
[White "Ljukin, Sergei"]
[Black "Viskelis, Darius"]
[WhiteFideId "14102200"]
[BlackFideId "12800830"]
[WhiteElo "2312"]
[BlackElo "1999"]
[Result "1-0"]
[Round "09"]
[TimeControl "180+1"]
[Date "2022.02.15"]
[WhiteClock "0:01:03"]
[BlackClock "0:00:01"]

1. e4 {[%clk 0:02:58]}  c6 {[%clk 0:02:58]} 2. d4 {[%clk 0:02:55]}  g6 {[%clk 0:02:59]} 3. Nc3 {[%clk 0:02:54]}  Bg7 {[%clk 0:02:59]} 4. Bc4 {[%clk 0:02:54]}  e6 {[%clk 0:02:53]} 5. e5 {[%clk 0:02:50]}  d6 {[%clk 0:02:47]} 6. Bf4 {[%clk 0:02:45]}  b5 {[%clk 0:02:37]} 7. Bb3 {[%clk 0:02:44]}  dxe5 {[%clk 0:02:21]} 8. dxe5 {[%clk 0:02:44]}  Ne7 {[%clk 0:01:52]} 9. Qxd8+ {[%clk 0:02:39]}  Kxd8 {[%clk 0:01:52]} 10. Bg5 {[%clk 0:02:38]}  Bxe5 {[%clk 0:01:42]} 11. O-O-O+ {[%clk 0:02:37]}  Ke8 {[%clk 0:01:41]} 12. Ne4 {[%clk 0:02:37]}  Nd5 {[%clk 0:01:36]} 13. Bxd5 {[%clk 0:02:25]}  cxd5 {[%clk 0:01:23]} 14. Nf6+ {[%clk 0:02:24]}  Kf8 {[%clk 0:01:13]} 15. f4 {[%clk 0:02:12]}  Bc7 {[%clk 0:01:09]} 16. Bh6+ {[%clk 0:02:08]}  Ke7 {[%clk 0:01:09]} 17. Bg5 {[%clk 0:02:02]}  Bxf4+ {[%clk 0:01:09]} 18. Bxf4 {[%clk 0:02:00]}  Kxf6 {[%clk 0:01:09]} 19. Nf3 {[%clk 0:02:00]}  Nc6 {[%clk 0:01:05]} 20. Rhe1 {[%clk 0:01:49]}  Kg7 {[%clk 0:00:56]} 21. g4 {[%clk 0:01:47]}  h6 {[%clk 0:00:47]} 22. h4 {[%clk 0:01:46]}  a5 {[%clk 0:00:34]} 23. g5 {[%clk 0:01:45]}  hxg5 {[%clk 0:00:33]} 24. hxg5 {[%clk 0:01:45]}  Rh3 {[%clk 0:00:17]} 25. Ne5 {[%clk 0:01:45]}  Nxe5 {[%clk 0:00:13]} 26. Bxe5+ {[%clk 0:01:45]}  Kf8 {[%clk 0:00:11]} 27. Bf6 {[%clk 0:01:41]}  Bb7 {[%clk 0:00:07]} 28. Rh1 {[%clk 0:01:41]}  Rxh1 {[%clk 0:00:06]} 29. Rxh1 {[%clk 0:01:40]}  Ke8 {[%clk 0:00:06]} 30. Rh7 {[%clk 0:01:37]}  Rc8 {[%clk 0:00:03]} 31. b3 {[%clk 0:01:30]}  b4 {[%clk 0:00:03]} 32. Kd2 {[%clk 0:01:30]}  Ba6 {[%clk 0:00:04]} 33. c3 {[%clk 0:01:04]}  bxc3+ {[%clk 0:00:02]} 34. Bxc3 {[%clk 0:01:04]}  a4 {[%clk 0:00:01]} 35. bxa4 {[%clk 0:01:03]} 1-0


[Site "https://www.chess.com"]

[Event "Titled Tuesday Blitz February 15 Early 2022"]
[White "Manukyan, Artyom"]
[Black "Gatterer, Florian"]
[WhiteFideId "13305786"]
[BlackFideId "811688"]
[WhiteElo "2034"]
[BlackElo "2218"]
[Result "1-0"]
[Round "09"]
[TimeControl "180+1"]
[Date "2022.02.15"]
[WhiteClock "0:01:30"]
[BlackClock "0:00:53"]

1. e4 {[%clk 0:02:52]}  e5 {[%clk 0:02:58]} 2. Nf3 {[%clk 0:02:52]}  Nc6 {[%clk 0:02:58]} 3. Bb5 {[%clk 0:02:52]}  Nf6 {[%clk 0:02:58]} 4. O-O {[%clk 0:02:53]}  Nxe4 {[%clk 0:02:58]} 5. Re1 {[%clk 0:02:53]}  Nd6 {[%clk 0:02:58]} 6. Nxe5 {[%clk 0:02:54]}  Be7 {[%clk 0:02:55]} 7. Bd3 {[%clk 0:02:55]}  Nxe5 {[%clk 0:02:48]} 8. Rxe5 {[%clk 0:02:55]}  O-O {[%clk 0:02:48]} 9. Nc3 {[%clk 0:02:52]}  Bf6 {[%clk 0:02:45]} 10. Re3 {[%clk 0:02:52]}  g6 {[%clk 0:02:46]} 11. Nd5 {[%clk 0:02:51]}  Bg7 {[%clk 0:02:32]} 12. Ne7+ {[%clk 0:02:48]}  Kh8 {[%clk 0:02:32]} 13. Nxc8 {[%clk 0:02:49]}  Rxc8 {[%clk 0:02:29]} 14. Rb1 {[%clk 0:02:50]}  Re8 {[%clk 0:02:26]} 15. b3 {[%clk 0:02:50]}  Rxe3 {[%clk 0:02:18]} 16. fxe3 {[%clk 0:02:50]}  Qg5 {[%clk 0:02:07]} 17. Qf3 {[%clk 0:02:46]}  c6 {[%clk 0:02:04]} 18. Ba3 {[%clk 0:02:46]}  Ne8 {[%clk 0:01:51]} 19. Qxf7 {[%clk 0:02:44]}  d5 {[%clk 0:01:42]} 20. Rf1 {[%clk 0:02:40]}  Nf6 {[%clk 0:01:40]} 21. Be7 {[%clk 0:02:38]}  Rc7 {[%clk 0:01:32]} 22. Qxf6 {[%clk 0:01:51]}  Bxf6 {[%clk 0:00:56]} 23. Bxf6+ {[%clk 0:01:52]}  Qxf6 {[%clk 0:00:55]} 24. Rxf6 {[%clk 0:01:49]}  Kg7 {[%clk 0:00:56]} 25. Rf2 {[%clk 0:01:49]}  a5 {[%clk 0:00:57]} 26. a4 {[%clk 0:01:33]}  h5 {[%clk 0:00:54]} 27. h4 {[%clk 0:01:33]}  c5 {[%clk 0:00:54]} 28. Bb5 {[%clk 0:01:33]}  c4 {[%clk 0:00:54]} 29. bxc4 {[%clk 0:01:29]}  dxc4 {[%clk 0:00:54]} 30. c3 {[%clk 0:01:30]}  b6 {[%clk 0:00:53]} 31. Rf4 {[%clk 0:01:30]} 1-0


[Site "https://www.chess.com"]

[Event "Titled Tuesday Blitz February 15 Early 2022"]
[White "Martin, Lewis"]
[Black "Maung, Maung Kyaw Zaw Hein"]
[WhiteFideId "410551"]
[BlackFideId "13001698"]
[WhiteElo "2145"]
[BlackElo "1785"]
[Result "1-0"]
[Round "09"]
[TimeControl "180+1"]
[Date "2022.02.15"]
[WhiteClock "0:01:18"]
[BlackClock "0:00:04"]

1. e4 {[%clk 0:03:00]}  c6 {[%clk 0:01:20]} 2. d4 {[%clk 0:03:00]}  d5 {[%clk 0:01:20]} 3. Nc3 {[%clk 0:03:00]}  dxe4 {[%clk 0:01:20]} 4. Nxe4 {[%clk 0:03:00]}  Bf5 {[%clk 0:01:20]} 5. Ng3 {[%clk 0:03:00]}  Bg6 {[%clk 0:01:20]} 6. Nf3 {[%clk 0:03:01]}  Nd7 {[%clk 0:01:21]} 7. h4 {[%clk 0:03:01]}  h6 {[%clk 0:01:21]} 8. h5 {[%clk 0:03:02]}  Bh7 {[%clk 0:01:21]} 9. Bd3 {[%clk 0:03:03]}  Bxd3 {[%clk 0:01:22]} 10. Qxd3 {[%clk 0:03:04]}  e6 {[%clk 0:01:22]} 11. Bd2 {[%clk 0:03:03]}  Ngf6 {[%clk 0:01:22]} 12. O-O-O {[%clk 0:03:03]}  Be7 {[%clk 0:01:23]} 13. c4 {[%clk 0:03:00]}  b5 {[%clk 0:01:22]} 14. cxb5 {[%clk 0:02:51]}  cxb5 {[%clk 0:01:22]} 15. Kb1 {[%clk 0:02:51]}  O-O {[%clk 0:01:15]} 16. Ne4 {[%clk 0:02:51]}  Nxe4 {[%clk 0:01:14]} 17. Qxe4 {[%clk 0:02:51]}  Nf6 {[%clk 0:01:14]} 18. Qe2 {[%clk 0:02:51]}  Qd5 {[%clk 0:01:09]} 19. g4 {[%clk 0:02:47]}  Qe4+ {[%clk 0:01:07]} 20. Qxe4 {[%clk 0:02:45]}  Nxe4 {[%clk 0:01:08]} 21. Be3 {[%clk 0:02:46]}  Rfd8 {[%clk 0:01:06]} 22. Ne5 {[%clk 0:02:40]}  Bf6 {[%clk 0:00:55]} 23. f3 {[%clk 0:02:19]}  Nd6 {[%clk 0:00:51]} 24. Nc6 {[%clk 0:02:12]}  Rd7 {[%clk 0:00:50]} 25. b3 {[%clk 0:02:05]}  Rc8 {[%clk 0:00:45]} 26. Rc1 {[%clk 0:02:04]}  Rdc7 {[%clk 0:00:45]} 27. Nb4 {[%clk 0:01:57]}  Rxc1+ {[%clk 0:00:43]} 28. Rxc1 {[%clk 0:01:56]}  Rxc1+ {[%clk 0:00:43]} 29. Kxc1 {[%clk 0:01:51]}  Kf8 {[%clk 0:00:42]} 30. Kc2 {[%clk 0:01:50]}  Ke8 {[%clk 0:00:42]} 31. Nc6 {[%clk 0:01:48]}  a6 {[%clk 0:00:33]} 32. Nb8 {[%clk 0:01:45]}  a5 {[%clk 0:00:30]} 33. Nc6 {[%clk 0:01:45]}  Bd8 {[%clk 0:00:28]} 34. Nxd8 {[%clk 0:01:40]}  Kxd8 {[%clk 0:00:28]} 35. Kd3 {[%clk 0:01:38]}  Kd7 {[%clk 0:00:28]} 36. Bxh6 {[%clk 0:01:32]}  gxh6 {[%clk 0:00:28]} 37. g5 {[%clk 0:01:32]}  Ne8 {[%clk 0:00:22]} 38. gxh6 {[%clk 0:01:28]}  Nf6 {[%clk 0:00:22]} 39. Ke3 {[%clk 0:01:28]}  Nh7 {[%clk 0:00:20]} 40. Kf4 {[%clk 0:01:27]}  Kd6 {[%clk 0:00:18]} 41. Ke4 {[%clk 0:01:26]}  f5+ {[%clk 0:00:13]} 42. Kd3 {[%clk 0:01:24]}  Kd5 {[%clk 0:00:03]} 43. Ke3 {[%clk 0:01:24]}  e5 {[%clk 0:00:02]} 44. dxe5 {[%clk 0:01:23]}  Kxe5 {[%clk 0:00:03]} 45. f4+ {[%clk 0:01:22]}  Kd5 {[%clk 0:00:01]} 46. Kd3 {[%clk 0:01:22]}  Nf6 {[%clk 0:00:01]} 47. Ke3 {[%clk 0:01:21]}  Kc5 {[%clk 0:00:02]} 48. Kd3 {[%clk 0:01:22]}  Kb4 {[%clk 0:00:02]} 49. Kd4 {[%clk 0:01:21]}  Ka3 {[%clk 0:00:02]} 50. Ke5 {[%clk 0:01:22]}  Nh7 {[%clk 0:00:02]} 51. Kxf5 {[%clk 0:01:22]}  Kxa2 {[%clk 0:00:02]} 52. Kg6 {[%clk 0:01:22]}  a4 {[%clk 0:00:02]} 53. Kxh7 {[%clk 0:01:22]}  axb3 {[%clk 0:00:02]} 54. Kg8 {[%clk 0:01:19]}  b2 {[%clk 0:00:03]} 55. h7 {[%clk 0:01:20]}  b1=Q {[%clk 0:00:04]} 56. h8=Q {[%clk 0:01:20]}  Qb3+ {[%clk 0:00:04]} 57. Kh7 {[%clk 0:01:19]}  Qc3 {[%clk 0:00:04]} 58. Qxc3 {[%clk 0:01:18]} 1-0


[Site "https://www.chess.com"]

[Event "Titled Tuesday Blitz February 15 Early 2022"]
[White "Matlakov, Maxim"]
[Black "Le, Tuan Minh"]
[WhiteFideId "4168003"]
[BlackFideId "12401153"]
[WhiteElo "2661"]
[BlackElo "2450"]
[Result "1/2-1/2"]
[Round "09"]
[TimeControl "180+1"]
[Date "2022.02.15"]
[WhiteClock "0:00:06"]
[BlackClock "0:00:06"]

1. e4 {[%clk 0:03:00]}  c5 {[%clk 0:02:58]} 2. Nf3 {[%clk 0:03:00]}  Nf6 {[%clk 0:02:58]} 3. e5 {[%clk 0:03:00]}  Nd5 {[%clk 0:02:58]} 4. Nc3 {[%clk 0:03:01]}  e6 {[%clk 0:02:54]} 5. Ne4 {[%clk 0:03:00]}  f5 {[%clk 0:02:54]} 6. Nc3 {[%clk 0:03:00]}  Ne7 {[%clk 0:02:54]} 7. b3 {[%clk 0:02:52]}  Nbc6 {[%clk 0:02:51]} 8. Bb2 {[%clk 0:02:52]}  a6 {[%clk 0:02:48]} 9. d4 {[%clk 0:02:45]}  cxd4 {[%clk 0:02:46]} 10. Nxd4 {[%clk 0:02:46]}  Nxd4 {[%clk 0:02:26]} 11. Qxd4 {[%clk 0:02:46]}  Nc6 {[%clk 0:02:27]} 12. Qd2 {[%clk 0:02:19]}  Qa5 {[%clk 0:02:18]} 13. O-O-O {[%clk 0:02:18]}  Ba3 {[%clk 0:02:17]} 14. f4 {[%clk 0:02:16]}  O-O {[%clk 0:02:16]} 15. Be2 {[%clk 0:02:09]}  b5 {[%clk 0:02:16]} 16. g4 {[%clk 0:02:04]}  Bb7 {[%clk 0:01:40]} 17. Rhg1 {[%clk 0:01:50]}  Rad8 {[%clk 0:01:25]} 18. gxf5 {[%clk 0:01:39]}  Rxf5 {[%clk 0:01:26]} 19. Bd3 {[%clk 0:01:39]}  Rf7 {[%clk 0:01:21]} 20. Rg4 {[%clk 0:01:34]}  Ne7 {[%clk 0:01:18]} 21. Bxa3 {[%clk 0:01:14]}  Qxa3+ {[%clk 0:01:19]} 22. Kb1 {[%clk 0:01:15]}  Bf3 {[%clk 0:01:16]} 23. Rh4 {[%clk 0:01:11]}  Nf5 {[%clk 0:00:51]} 24. Bxf5 {[%clk 0:01:11]}  Rxf5 {[%clk 0:00:52]} 25. Rf1 {[%clk 0:01:11]}  Bc6 {[%clk 0:00:51]} 26. Rg4 {[%clk 0:01:11]}  Rdf8 {[%clk 0:00:50]} 27. Ne2 {[%clk 0:01:08]}  R5f7 {[%clk 0:00:41]} 28. Nd4 {[%clk 0:01:04]}  Be4 {[%clk 0:00:41]} 29. Rfg1 {[%clk 0:00:52]}  Qc5 {[%clk 0:00:36]} 30. Qe3 {[%clk 0:00:51]}  Bg6 {[%clk 0:00:27]} 31. h4 {[%clk 0:00:51]}  Qd5 {[%clk 0:00:23]} 32. R1g2 {[%clk 0:00:43]}  b4 {[%clk 0:00:23]} 33. Kb2 {[%clk 0:00:32]}  a5 {[%clk 0:00:23]} 34. Ne2 {[%clk 0:00:27]}  a4 {[%clk 0:00:23]} 35. Qd4 {[%clk 0:00:27]}  a3+ {[%clk 0:00:22]} 36. Kc1 {[%clk 0:00:26]}  Qc6 {[%clk 0:00:20]} 37. Qc4 {[%clk 0:00:17]}  Qxc4 {[%clk 0:00:15]} 38. bxc4 {[%clk 0:00:18]}  Bh5 {[%clk 0:00:16]} 39. Rg5 {[%clk 0:00:15]}  Bxe2 {[%clk 0:00:16]} 40. Rxe2 {[%clk 0:00:16]}  Rxf4 {[%clk 0:00:17]} 41. Reg2 {[%clk 0:00:16]}  R8f7 {[%clk 0:00:15]} 42. R5g4 {[%clk 0:00:16]}  h5 {[%clk 0:00:09]} 43. Rxf4 {[%clk 0:00:08]}  Rxf4 {[%clk 0:00:10]} 44. Kd2 {[%clk 0:00:08]}  Rxc4 {[%clk 0:00:09]} 45. Rh2 {[%clk 0:00:09]}  Kh7 {[%clk 0:00:10]} 46. Kd3 {[%clk 0:00:09]}  Rc3+ {[%clk 0:00:10]} 47. Kd4 {[%clk 0:00:10]}  Rg3 {[%clk 0:00:10]} 48. Rd2 {[%clk 0:00:09]}  Rg4+ {[%clk 0:00:09]} 49. Kc5 {[%clk 0:00:09]}  Rxh4 {[%clk 0:00:09]} 50. Rxd7 {[%clk 0:00:09]}  Rh2 {[%clk 0:00:05]} 51. Kxb4 {[%clk 0:00:09]}  Rxc2 {[%clk 0:00:05]} 52. Kxa3 {[%clk 0:00:08]}  Rc5 {[%clk 0:00:06]} 53. Kb4 {[%clk 0:00:08]}  Rxe5 {[%clk 0:00:06]} 54. a4 {[%clk 0:00:08]}  Re4+ {[%clk 0:00:06]} 55. Kb5 {[%clk 0:00:08]}  h4 {[%clk 0:00:07]} 56. a5 {[%clk 0:00:09]}  h3 {[%clk 0:00:07]} 57. a6 {[%clk 0:00:08]}  Re5+ {[%clk 0:00:05]} 58. Kb6 {[%clk 0:00:09]}  Re1 {[%clk 0:00:04]} 59. Rd3 {[%clk 0:00:08]}  Rb1+ {[%clk 0:00:02]} 60. Kc6 {[%clk 0:00:08]}  Rc1+ {[%clk 0:00:03]} 61. Kb7 {[%clk 0:00:09]}  Rb1+ {[%clk 0:00:03]} 62. Kc7 {[%clk 0:00:09]}  Rc1+ {[%clk 0:00:02]} 63. Kb7 {[%clk 0:00:10]}  Rb1+ {[%clk 0:00:03]} 64. Kc6 {[%clk 0:00:10]}  Rh1 {[%clk 0:00:03]} 65. a7 {[%clk 0:00:10]}  Ra1 {[%clk 0:00:03]} 66. Rxh3+ {[%clk 0:00:09]}  Kg6 {[%clk 0:00:03]} 67. Kb7 {[%clk 0:00:09]}  Kf5 {[%clk 0:00:03]} 68. a8=Q {[%clk 0:00:05]}  Rxa8 {[%clk 0:00:04]} 69. Kxa8 {[%clk 0:00:06]}  g5 {[%clk 0:00:04]} 70. Kb7 {[%clk 0:00:06]}  g4 {[%clk 0:00:05]} 71. Rh8 {[%clk 0:00:06]}  g3 {[%clk 0:00:05]} 72. Kc6 {[%clk 0:00:06]}  Kf4 {[%clk 0:00:04]} 73. Rf8+ {[%clk 0:00:05]}  Ke4 {[%clk 0:00:03]} 74. Kd6 {[%clk 0:00:05]}  e5 {[%clk 0:00:04]} 75. Rg8 {[%clk 0:00:05]}  Kf4 {[%clk 0:00:03]} 76. Kd5 {[%clk 0:00:05]}  Kf3 {[%clk 0:00:04]} 77. Kxe5 {[%clk 0:00:04]}  g2 {[%clk 0:00:04]} 78. Rf8+ {[%clk 0:00:04]}  Ke3 {[%clk 0:00:04]} 79. Rg8 {[%clk 0:00:05]}  Kf3 {[%clk 0:00:05]} 80. Rf8+ {[%clk 0:00:05]}  Ke3 {[%clk 0:00:05]} 81. Rg8 {[%clk 0:00:06]}  Kf3 {[%clk 0:00:06]} 1/2-1/2


[Site "https://www.chess.com"]

[Event "Titled Tuesday Blitz February 15 Early 2022"]
[White "Mejia, Cherry Ann"]
[Black "Toncheva, Nadya"]
[WhiteFideId "5206880"]
[BlackFideId "2924056"]
[WhiteElo "2007"]
[BlackElo "1920"]
[Result "0-1"]
[Round "09"]
[TimeControl "180+1"]
[Date "2022.02.15"]
[WhiteClock "0:00:02"]
[BlackClock "0:00:20"]

1. e4 {[%clk 0:03:00]}  c5 {[%clk 0:03:00]} 2. Nc3 {[%clk 0:03:00]}  Nc6 {[%clk 0:03:00]} 3. g3 {[%clk 0:03:00]}  g6 {[%clk 0:03:00]} 4. Bg2 {[%clk 0:02:59]}  Bg7 {[%clk 0:03:01]} 5. d3 {[%clk 0:03:00]}  e6 {[%clk 0:03:01]} 6. Be3 {[%clk 0:03:00]}  Nd4 {[%clk 0:03:01]} 7. Qd2 {[%clk 0:03:00]}  Ne7 {[%clk 0:03:01]} 8. Nd1 {[%clk 0:03:00]}  O-O {[%clk 0:03:00]} 9. c3 {[%clk 0:03:00]}  Ndc6 {[%clk 0:02:58]} 10. Bh6 {[%clk 0:03:01]}  b6 {[%clk 0:02:56]} 11. h4 {[%clk 0:03:01]}  Bxh6 {[%clk 0:02:50]} 12. Qxh6 {[%clk 0:03:00]}  Kh8 {[%clk 0:02:50]} 13. h5 {[%clk 0:02:57]}  Ng8 {[%clk 0:02:50]} 14. Qd2 {[%clk 0:02:56]}  g5 {[%clk 0:02:49]} 15. f4 {[%clk 0:02:55]}  gxf4 {[%clk 0:02:46]} 16. gxf4 {[%clk 0:02:54]}  Bb7 {[%clk 0:02:42]} 17. Ne3 {[%clk 0:02:48]}  Qc7 {[%clk 0:02:26]} 18. Ne2 {[%clk 0:02:46]}  Nge7 {[%clk 0:02:23]} 19. O-O {[%clk 0:02:23]}  f5 {[%clk 0:02:18]} 20. Ng3 {[%clk 0:02:02]}  fxe4 {[%clk 0:02:14]} 21. dxe4 {[%clk 0:01:50]}  Rxf4 {[%clk 0:02:00]} 22. Ne2 {[%clk 0:01:39]}  Rxf1+ {[%clk 0:01:57]} 23. Rxf1 {[%clk 0:01:40]}  Rg8 {[%clk 0:01:50]} 24. Rf7 {[%clk 0:01:30]}  Rg7 {[%clk 0:01:44]} 25. Rxg7 {[%clk 0:01:23]}  Kxg7 {[%clk 0:01:45]} 26. Ng4 {[%clk 0:01:24]}  Ng8 {[%clk 0:01:24]} 27. Qg5+ {[%clk 0:01:18]}  Kf8 {[%clk 0:01:24]} 28. h6 {[%clk 0:01:16]}  d6 {[%clk 0:01:17]} 29. Nf4 {[%clk 0:01:16]}  Qe7 {[%clk 0:01:08]} 30. Nh3 {[%clk 0:00:46]}  Nd8 {[%clk 0:00:43]} 31. Qxe7+ {[%clk 0:00:18]}  Kxe7 {[%clk 0:00:43]} 32. Ng5 {[%clk 0:00:18]}  Nf7 {[%clk 0:00:38]} 33. Nxh7 {[%clk 0:00:04]}  Ngxh6 {[%clk 0:00:37]} 34. Nxh6 {[%clk 0:00:05]}  Nxh6 {[%clk 0:00:37]} 35. Ng5 {[%clk 0:00:05]}  Nf7 {[%clk 0:00:31]} 36. Nh3 {[%clk 0:00:03]}  Ne5 {[%clk 0:00:28]} 37. Kf1 {[%clk 0:00:03]}  Ba6+ {[%clk 0:00:26]} 38. Kg1 {[%clk 0:00:02]}  Bd3 {[%clk 0:00:21]} 39. Nf4 {[%clk 0:00:02]}  Bb1 {[%clk 0:00:20]} 40. a3 {[%clk 0:00:01]}  Nc4 {[%clk 0:00:19]} 41. b4 {[%clk 0:00:01]}  Nxa3 {[%clk 0:00:19]} 42. bxc5 {[%clk 0:00:02]}  bxc5 {[%clk 0:00:19]} 43. Kf2 {[%clk 0:00:02]}  a5 {[%clk 0:00:19]} 44. Ke2 {[%clk 0:00:03]}  Nc4 {[%clk 0:00:19]} 45. Kd1 {[%clk 0:00:03]}  Ne5 {[%clk 0:00:17]} 46. Kc1 {[%clk 0:00:03]}  Ba2 {[%clk 0:00:17]} 47. Kb2 {[%clk 0:00:02]}  Bc4 {[%clk 0:00:18]} 48. Bh3 {[%clk 0:00:02]}  Nd3+ {[%clk 0:00:18]} 49. Nxd3 {[%clk 0:00:02]}  Bxd3 {[%clk 0:00:19]} 50. Bg2 {[%clk 0:00:01]}  Bb5 {[%clk 0:00:18]} 51. Kb3 {[%clk 0:00:02]}  Bc6 {[%clk 0:00:19]} 52. Ka3 {[%clk 0:00:03]}  a4 {[%clk 0:00:19]} 53. Bf3 {[%clk 0:00:02]}  e5 {[%clk 0:00:19]} 54. Bg2 {[%clk 0:00:02]}  Kf6 {[%clk 0:00:20]} 0-1


[Site "https://www.chess.com"]

[Event "Titled Tuesday Blitz February 15 Early 2022"]
[White "Miszler, Levente"]
[Black "Qashashvili, Alexandre"]
[WhiteFideId "763276"]
[BlackFideId "13600842"]
[WhiteElo "1966"]
[BlackElo "2316"]
[Result "1/2-1/2"]
[Round "09"]
[TimeControl "180+1"]
[Date "2022.02.15"]
[WhiteClock "0:00:14"]
[BlackClock "0:00:45"]

1. Nf3 {[%clk 0:03:00]}  c6 {[%clk 0:03:00]} 2. g3 {[%clk 0:02:59]}  d5 {[%clk 0:03:01]} 3. Bg2 {[%clk 0:02:59]}  Nf6 {[%clk 0:03:01]} 4. O-O {[%clk 0:02:57]}  Bf5 {[%clk 0:03:02]} 5. d3 {[%clk 0:02:56]}  Qc8 {[%clk 0:03:02]} 6. Nbd2 {[%clk 0:02:54]}  Bh3 {[%clk 0:03:02]} 7. c4 {[%clk 0:02:54]}  h5 {[%clk 0:03:01]} 8. e4 {[%clk 0:02:51]}  h4 {[%clk 0:03:01]} 9. Nxh4 {[%clk 0:02:47]}  g5 {[%clk 0:03:00]} 10. Nf5 {[%clk 0:02:39]}  Bxg2 {[%clk 0:02:59]} 11. Kxg2 {[%clk 0:02:40]}  dxe4 {[%clk 0:02:59]} 12. dxe4 {[%clk 0:02:40]}  Nxe4 {[%clk 0:02:59]} 13. Nxe4 {[%clk 0:02:16]}  Qxf5 {[%clk 0:02:57]} 14. Nxg5 {[%clk 0:02:16]}  f6 {[%clk 0:02:53]} 15. Qf3 {[%clk 0:02:15]}  Qc8 {[%clk 0:02:43]} 16. h4 {[%clk 0:01:32]}  fxg5 {[%clk 0:02:41]} 17. Bxg5 {[%clk 0:01:33]}  Qe6 {[%clk 0:02:21]} 18. Rad1 {[%clk 0:01:24]}  Nd7 {[%clk 0:02:20]} 19. Rfe1 {[%clk 0:01:07]}  Qxc4 {[%clk 0:02:19]} 20. Qf5 {[%clk 0:00:55]}  O-O-O {[%clk 0:02:12]} 21. Bxe7 {[%clk 0:00:47]}  Bxe7 {[%clk 0:01:58]} 22. Rxe7 {[%clk 0:00:48]}  Rhf8 {[%clk 0:01:46]} 23. Rdxd7 {[%clk 0:00:14]}  Rxf5 {[%clk 0:00:45]} 24. Rc7+ {[%clk 0:00:14]} 1/2-1/2


[Site "https://www.chess.com"]